[Event "3rd President Cup-A 2024"]
[Site "Tashkent"]
[Date "2024.11.28"]
[Round "8.10"]
[White "Gareyev, Timur"]
[Black "Jubin Jimmy"]
[Result "1/2-1/2"]
[ECO "A06"]
[WhiteElo "2552"]
[BlackElo "2453"]
[Annotator "TA"]
[PlyCount "137"]
[EventDate "2024.11.22"]
[EventType "swiss"]
[EventCountry "UZB"]
[SourceTitle "playchess.com"]
[Source "ChessBase"]
[SourceQuality "1"]
[TimeControl "5400+30"]

{[%evp 60,137,39,27,30,21,27,28,40,31,31,31,31,31,31,19,68,0,210,14,36,24,24,24,25,25,25,25,25,25,25,25,32,25,32,32,32,25,25,25,25,25,25,25,25,0,25,25,25,25,25,-74,-84,-75,-54,-62,0,-196,0,-96,0,-60,0,0,0,0,0,0,0,0,0,0,0,0,0,0,0,0,0,0]} 1. Nf3 {[%emt 0:00:03]} Nf6 {[%emt 0:01:40]} 2. b3 {[%emt 0:02:24]} d5 {[%emt 0:01:30]} 3. Bb2 {[%emt 0:01:32]} c6 {[%emt 0:01:10]} 4. d3 {[%emt 0:05:42]} Bg4 {[%emt 0:02:42]} 5. Nbd2 {[%emt 0:00:16]} Nbd7 {[%emt 0:01:55]} 6. h3 {[%emt 0:00:16]} Bxf3 {[%emt 0:02:39]} 7. Nxf3 {[%emt 0:00:22]} e6 {[%emt 0:00:28]} 8. a3 {[%emt 0:08:03]} Bd6 {[%emt 0:07:42]} 9. e3 {[%emt 0:03:56]} e5 {[%emt 0:04:43]} 10. c4 {[%emt 0:01:45]} O-O {[%emt 0:02:55]} 11. Be2 {[%emt 0:04:17]} Re8 {[%emt 0:02:30]} 12. Qc2 {[%emt 0:03:21]} a5 {[%emt 0:10:32]} 13. d4 {[%emt 0:31:41]} e4 {[%emt 0:07:11]} 14. Nd2 {[%emt 0:02:11]} h6 {[%emt 0:03:09]} 15. c5 {[%emt 0:01:14]} Be7 {[%emt 0:03:40]} 16. b4 {[%emt 0:02:08]} axb4 {[%emt 0:07:31]} 17. axb4 {[%emt 0:00:33]} Rxa1+ {[%emt 0:00:15]} 18. Bxa1 {[%emt 0:00:02]} Qc7 {[%emt 0:01:50]} 19. O-O {[%emt 0:02:58]} b5 {[%emt 0:04:01]} 20. Bc3 {[%emt 0:02:48]} Ra8 {[%emt 0:00:13]} 21. Nb3 {[%emt 0:00:27]} Ne8 {[%emt 0:03:54]} 22. Na5 {[%emt 0:07:43]} Bd8 {[%emt 0:02:21]} 23. f3 {[%emt 0:02:55]} Ndf6 {[%emt 0:02:07]} 24. f4 {[%emt 0:01:57]} g6 {[%emt 0:02:15]} 25. g4 {[%emt 0:01:19]} Qd7 {[%emt 0:01:29]} 26. Kg2 {[%emt 0:00:52]} Ng7 {[%emt 0:01:53]} 27. Qd1 {[%emt 0:00:46]} Bc7 {[%emt 0:01:10]} 28. Be1 {[%emt 0:00:40]} Nfe8 {[%emt 0:02:43]} 29. Qd2 {[%emt 0:01:18]} Bb8 {[%emt 0:02:44]} 30. Bh4 {[%emt 0:01:28]} Qc7 {[%emt 0:00:29]} 31. Qe1 {[%emt 0:00:36]} f5 {[%emt 0:02:27]} 32. Kh2 {[%emt 0:02:21]} Kh7 {[%emt 0:01:53]} 33. Rg1 {[%emt 0:03:04]} Ra6 {[%emt 0:03:40]} 34. Kh1 {[%emt 0:01:08]} Qd7 {[%emt 0:00:49]} 35. Qf1 {[%emt 0:00:01]} Ra7 {[%emt 0:00:49]} 36. Qg2 {[%emt 0:01:32]} Qe6 {[%emt 0:00:58]} 37. Bd8 {[%emt 0:01:52]} (37. g5 {is more complex.} h5 38. Bd1 Qd7 39. Be1) 37... Rd7 {[%emt 0:01:39]} (37... Bc7 $11 38. Bxc7 Rxc7 (38... Nxc7 39. Qf2 $11)) 38. Bh4 {[%emt 0:00:30]} (38. Bb6 $14) 38... Bc7 $2 {[%emt 0:00:30]} (38... Ra7 $11 {and Black has nothing to worry.}) 39. Nb3 $2 {[%emt 0:00:44]} ({White must play} 39. Nxc6 $1 $18 Qxc6 40. gxf5 gxf5 (40... Nxf5 $2 {too greedy.} 41. Bxb5 Nxh4 42. Bxc6 $18) 41. Qf1) 39... Rf7 {[%emt 0:00:31]} 40. g5 {[%emt 0:00:04]} h5 {[%emt 0:01:52]} 41. Ra1 {[%emt 0:00:01]} Qc8 {[%emt 0:00:32]} 42. Qg1 {[%emt 0:00:47]} Bb8 {[%emt 0:02:32]} 43. Ra5 {[%emt 0:01:09]} Nc7 {[%emt 0:00:16]} 44. Be1 {[%emt 0:00:29]} Nce6 {[%emt 0:00:11]} 45. Bd2 {[%emt 0:00:01]} Nd8 {[%emt 0:01:43]} 46. h4 {[%emt 0:00:05]} Re7 {[%emt 0:00:31]} 47. Qa1 {[%emt 0:01:50]} Nge6 {[%emt 0:00:29]} 48. Qd1 {[%emt 0:00:34]} Kg7 {[%emt 0:00:48]} 49. Ra8 {[%emt 0:00:24]} (49. Ra2 {simplifies} Ra7 50. Rxa7+ Bxa7 51. Bc3) 49... Ra7 {[%emt 0:01:46]} 50. Rxa7+ {[%emt 0:00:02]} Bxa7 {[%emt 0:00:02]} 51. Qa1 {[%emt 0:00:10]} Bb8 {[%emt 0:00:12]} 52. Na5 {[%emt 0:00:58]} Qa6 {[%emt 0:00:39]} 53. Qf1 {[%emt 0:00:07]} Nc7 {[%emt 0:01:27]} 54. Qd1 {[%emt 0:00:01]} Nce6 {[%emt 0:00:08] [#]} 55. Bxh5 {[%emt 0:00:53]} (55. Kg1 $1 $11) 55... gxh5 $17 {[%emt 0:00:05]} 56. Qxh5 {[%emt 0:00:02]} Nf7 {[%emt 0:00:05]} 57. Qe2 {[%emt 0:00:56]} Qc8 {[%emt 0:00:43]} (57... Bc7 $15) 58. h5 $2 {[%emt 0:00:33]} (58. Qh2 $1 $11 {and White is okay.}) 58... Qd7 $2 {[%emt 0:00:36]} (58... Nfxg5 $19 {[%cal Og7h6] White must now prevent ...Kh6!} 59. fxg5 Nxg5) 59. Qg2 {[%emt 0:00:40] [#]} (59. Kg1 $1 $11) 59... Bc7 {[%emt 0:01:22]} (59... Qe8 $1 $17 {[%cal Of7g5] ...Nfxg5! would now be deadly.} 60. Qh3 Nfxg5 61. fxg5 Nxg5 62. h6+ Kg6) 60. Be1 {[%emt 0:00:01]} (60. Kg1 $1 $11) 60... Qe8 {[%emt 0:00:20]} ({Black should play} 60... Bxa5 $15 61. bxa5 Nc7) 61. Qh3 $11 {[%emt 0:01:40]} Nfxg5 {[%emt 0:00:43]} 62. fxg5 {[%emt 0:00:24]} Nxg5 {[%emt 0:00:04]} 63. Qxf5 {[%emt 0:00:49]} Qxh5+ {[%emt 0:00:22]} 64. Kg2 {[%emt 0:00:02]} Qh2+ {[%emt 0:00:46]} 65. Kf1 {[%emt 0:00:02]} Qh1+ {[%emt 0:00:27]} 66. Ke2 {[%emt 0:00:06]} Qh5+ {[%emt 0:00:13]} 67. Kf1 {[%emt 0:00:02]} Qh1+ {[%emt 0:00:42]} 68. Ke2 {[%emt 0:00:01]} Qh5+ {[%emt 0:01:28]} 69. Kf1 {[%emt 0:00:04]} 1/2-1/2

[Event "3rd President Cup-A 2024"]
[Site "Tashkent"]
[Date "2024.11.28"]
[Round "8.11"]
[White "Mamedov, Edgar"]
[Black "Bernadskiy, Vitaliy"]
[Result "1/2-1/2"]
[ECO "E94"]
[WhiteElo "2448"]
[BlackElo "2543"]
[Annotator "TA"]
[PlyCount "75"]
[EventDate "2024.11.22"]
[EventType "swiss"]
[EventCountry "UZB"]
[SourceTitle "playchess.com"]
[Source "ChessBase"]
[SourceQuality "1"]
[TimeControl "5400+30"]

{[%evp 16,75,53,24,34,40,41,24,24,17,43,39,37,54,51,50,37,30,21,41,33,39,35,47,52,60,53,40,40,36,78,57,65,58,82,68,61,14,14,12,16,0,0,0,0,0,0,-4,0,0,0,-8,0,0,0,0,0,0,0,0,0,0]} 1. d4 {[%emt 0:00:03]} Nf6 {[%emt 0:01:14]} 2. c4 {[%emt 0:00:08]} g6 {[%emt 0:00:40]} 3. Nc3 {[%emt 0:00:24]} Bg7 {[%emt 0:00:06]} 4. e4 {[%emt 0:00:12]} d6 {[%emt 0:00:06]} 5. Nf3 {[%emt 0:00:38]} O-O {[%emt 0:00:06]} 6. Be2 {[%emt 0:00:15]} Na6 {[%emt 0:01:19]} 7. O-O {[%emt 0:00:37]} e5 {[%emt 0:00:10]} 8. Be3 {[%emt 0:00:51]} c6 {[%emt 0:01:27]} 9. Qc2 {[%emt 0:05:46]} exd4 {[%emt 0:20:16]} 10. Nxd4 {[%emt 0:01:04]} Re8 {[%emt 0:00:42]} 11. Rad1 {[%emt 0:05:12]} Qe7 {[%emt 0:00:07][%cal Rf6e4] White has an edge.} 12. f3 {[%emt 0:01:22]} d5 {[%emt 0:07:41]} 13. cxd5 {[%emt 0:07:23] [#] aiming for Bxa6.} Nxd5 {[%emt 0:14:52]} 14. Nxd5 {[%emt 0:05:22]} cxd5 {[%emt 0:01:13]} 15. Bxa6 {[%emt 0:13:34]} bxa6 {[%emt 0:00:04]} 16. Nc6 {[%emt 0:00:47]} Qb7 {[%emt 0:00:10]} 17. Rxd5 {[%emt 0:04:10] Nd8 would now be deadly. Black is weak on the dark squares} Be6 $1 {[%emt 0:00:05]} 18. Rc5 {[%emt 0:01:52]} Bxa2 {[%emt 0:03:26]} 19. Bd4 $36 {[%emt 0:09:29][%mdl 2048] White has good play.} Bxd4+ {[%emt 0:12:38]} 20. Nxd4 {[%emt 0:00:13]} Be6 {[%emt 0:02:58]} 21. Rc1 {[%emt 0:10:20]} Qb6 {[%emt 0:01:10]} 22. Qc3 {[%emt 0:05:26]} Rad8 {[%emt 0:02:14][%cal Ba8d8,Bd8d6,Bd6e6,Be6g6][%mdl 32]} 23. b4 {[%emt 0:05:28]} Rd6 {[%emt 0:06:07]} 24. h4 {[%emt 0:05:12]} Red8 {[%emt 0:00:29]} 25. Nxe6 {[%emt 0:01:43]} (25. Rd1 {simplifies} Rb8 26. Kf2 Qxb4 27. Qxb4 Rxb4 28. Nxe6 Rxe6 29. Rc7) 25... Rxe6 {[%emt 0:00:10] [#]} 26. h5 {[%emt 0:03:17]} gxh5 $11 {[%emt 0:00:26] The position is equal.} 27. Kh1 {[%emt 0:02:32]} Rg6 {[%emt 0:04:33]} 28. Rf1 {[%emt 0:01:13][%mdl 1024] White has compensation.} h4 {[%emt 0:01:40]} 29. Rh5 {[%emt 0:06:03]} Qd4 {[%emt 0:00:45]} 30. Qc7 {[%emt 0:00:42]} Rdd6 {[%emt 0:05:16]} 31. Qe7 {[%emt 0:01:01]} Qb2 {[%emt 0:02:28][%csl Gg6][%cal Rb2g2]} 32. Rg1 {[%emt 0:00:18]} Rd1 {[%emt 0:02:08][%csl Gg6][%cal Rb2g2]} 33. Qe8+ {[%emt 0:01:46]} Kg7 {[%emt 0:00:03][%csl Gg6][%cal Rb2g2]} 34. Rxh7+ {[%emt 0:00:18]} Kxh7 {[%emt 0:00:06][%csl Gg6][%cal Rb2g2]} 35. Qxf7+ {[%emt 0:00:03]} Kh6 {[%emt 0:02:23][%csl Gg6][%cal Rb2g2]} 36. Qf8+ {[%emt 0:00:08]} Kh7 {[%emt 0:00:14][%csl Gg6][%cal Rb2g2]} 37. Qf7+ {[%emt 0:00:06]} Kh6 {[%emt 0:00:10][%csl Gg6][%cal Rb2g2]} 38. Qf8+ {[%emt 0:00:04] Weighted Error Value: White=0.06 (flawless) /Black=0.03 (flawless) .  Mistake:       	White=1     	---        Inaccurate:     	---       	Black=1      OK:         	White=10    	Black=11     Best:        	White=6     	Black=1      Strong:       	---       	Black=1} 1/2-1/2

[Event "3rd President Cup-A 2024"]
[Site "Tashkent"]
[Date "2024.11.28"]
[Round "8.12"]
[White "Khubukshanov, Erdem"]
[Black "Raja Rithvik R"]
[Result "1/2-1/2"]
[ECO "A07"]
[WhiteElo "2443"]
[BlackElo "2528"]
[Annotator "TA"]
[PlyCount "92"]
[EventDate "2024.11.22"]
[EventType "swiss"]
[EventCountry "UZB"]
[SourceTitle "playchess.com"]
[Source "ChessBase"]
[SourceQuality "1"]
[TimeControl "5400+30"]

{[%evp 17,92,-1,7,-8,26,17,22,20,17,22,12,10,20,12,21,13,10,18,29,28,32,7,10,15,11,20,35,23,22,7,28,8,23,31,33,41,52,18,27,19,25,9,43,0,25,0,0,-36,-39,-45,0,0,0,0,0,0,0,0,0,0,0,0,20,0,0,0,0,0,0,0,62,0,0,0,0,0,0]} 1. Nf3 {[%emt 0:01:20]} d5 {[%emt 0:00:51]} 2. g3 {[%emt 0:00:20]} c6 {[%emt 0:00:47]} 3. Bg2 {[%emt 0:00:28]} Bf5 {[%emt 0:00:27]} 4. O-O {[%emt 0:01:36]} e6 {[%emt 0:00:21]} 5. d3 {[%emt 0:00:48]} h6 {[%emt 0:00:48]} 6. c4 {[%emt 0:03:54] A07: Réti Opening: New York and Capablanca Systems.} dxc4 {[%emt 0:01:59]} 7. dxc4 {[%emt 0:01:56]} Nd7 {[%emt 0:00:18]} 8. Nc3 {[%emt 0:05:40]} Ngf6 {[%emt 0:01:06]} 9. Bf4 {[%emt 0:02:35]} Be7 {[%emt 0:00:36]} 10. Qd2 {[%emt 0:01:05]} Nc5 {[%emt 0:17:13]} 11. Nd4 $146 {[%emt 0:24:21]} ({Predecessor:} 11. Rfd1 O-O 12. Ne5 Qxd2 13. Rxd2 Rfd8 14. Rad1 Rxd2 15. Rxd2 a5 16. f3 Rd8 17. Rxd8+ Bxd8 {½-½ Jakovenko,D (2713)-Grachev,B (2683) Wch Blitz 7th 2013 (18)}) 11... Nce4 {[%emt 0:08:52]} 12. Nxe4 {[%emt 0:05:55]} Bxe4 {[%emt 0:02:05]} 13. Rfd1 {[%emt 0:01:39]} Bxg2 {[%emt 0:02:00]} 14. Kxg2 {[%emt 0:00:09]} O-O {[%emt 0:04:22]} 15. Qc2 {[%emt 0:10:03]} Qb6 {[%emt 0:06:34]} 16. Rd3 {[%emt 0:01:29]} Rfd8 {[%emt 0:18:40]} 17. Rad1 {[%emt 0:00:47]} a5 {[%emt 0:01:39]} 18. h3 {[%emt 0:03:04]} a4 {[%emt 0:03:50]} 19. Be3 {[%emt 0:01:34]} Qa5 {[%emt 0:03:48]} 20. Nf3 {[%emt 0:01:39]} Rxd3 {[%emt 0:00:06]} 21. Rxd3 {[%emt 0:00:31]} Bc5 {[%emt 0:04:38]} 22. Bd2 {[%emt 0:02:16]} Qb6 {[%emt 0:03:16]} 23. e3 {[%emt 0:00:49]} Bb4 {[%emt 0:02:09]} 24. Ne5 {[%emt 0:11:11]} Qc5 {[%emt 0:02:16]} (24... Bxd2 $5 25. Qxd2 c5 $16) 25. Bxb4 {[%emt 0:01:57]} Qxb4 {[%emt 0:00:05]} 26. Rd4 {[%emt 0:00:41]} Qc5 {[%emt 0:08:09]} 27. Nd3 {[%emt 0:00:57]} (27. Qc3 $5) 27... Qa5 {[%emt 0:00:05]} 28. c5 {[%emt 0:02:18]} a3 $1 {[%emt 0:00:40]} 29. b3 {[%emt 0:00:19]} Nd5 {[%emt 0:02:43]} 30. Rc4 {[%emt 0:04:39]} Rd8 {[%emt 0:01:22]} 31. Qc1 {[%emt 0:03:04]} Nc7 {[%emt 0:01:42]} 32. Nb4 {[%emt 0:00:36]} Nb5 {[%emt 0:00:46]} 33. h4 {[%emt 0:01:41]} Qc7 {[%emt 0:00:18]} 34. Nc2 {[%emt 0:00:22]} Qa5 {[%emt 0:01:40]} 35. Nd4 {[%emt 0:00:40]} e5 {[%emt 0:00:54]} 36. Nf3 {[%emt 0:01:00]} Qc7 {[%emt 0:00:20]} 37. h5 {[%emt 0:02:00]} Qe7 {[%emt 0:00:49]} 38. Qc2 {[%emt 0:00:50]} Qe6 {[%emt 0:00:36]} 39. g4 {[%emt 0:00:50]} f6 {[%emt 0:00:33]} (39... Nd4 $5 40. Qe4 $8 Nxf3 41. Kxf3 Rd2 $11) 40. Kg3 {[%emt 0:00:22]} Qd5 {[%emt 0:00:25]} 41. Qf5 {[%emt 0:01:22]} Qd7 {[%emt 0:00:20]} 42. Qg6 {[%emt 0:01:33]} Qd3 {[%emt 0:00:43]} 43. Nh4 {[%emt 0:00:45]} Qd1 {[%emt 0:00:35]} (43... Qf1 $11) 44. Nf5 {[%emt 0:00:51]} ({Better is} 44. Kg2 $14 Rd2 45. g5 (45. Nf5 Rxf2+ 46. Kxf2 Qd2+ 47. Kf3 Qd1+ 48. Kf2 Qd2+ 49. Kf3 Qd1+ 50. Kf2 $11) 45... fxg5 (45... Rxa2 46. Qe8+ Kh7 47. g6#) (45... hxg5 $2 {loses.} 46. h6 $18) 46. Qe6+ (46. Nf5 Rxf2+ 47. Kxf2 Qd2+ 48. Kf1 Qd1+ 49. Kf2 Qd2+ 50. Kg1 Qe1+ 51. Kg2 Qe2+ 52. Kh3 Qf1+ 53. Kg4 Qd1+ 54. Kh3 Qf1+ 55. Kh2 Qe2+ 56. Kg3 Qe1+ 57. Kg2 Qe2+ 58. Kg3 Qe1+ 59. Kg2 $11) 46... Kh7 (46... Kh8 $2 47. Ng6+ Kh7 48. Nf8+ Kh8 49. Qf5 $18) 47. Qf5+ (47. Qg6+ Kh8 $11) 47... Kg8 48. Ng6) 44... Qg1+ $11 {[%emt 0:00:13]} 45. Kh3 {[%emt 0:00:13]} (45. Kf3 $5 Qh1+ $8 46. Kg3 Qg1+ 47. Kf3 Qh1+ 48. Kg3 Qg1+ $11) 45... Qh1+ {[%emt 0:00:17]} 46. Kg3 {[%emt 0:00:03]} Qg1+ {[%emt 0:00:06]} 1/2-1/2

[Event "3rd President Cup-A 2024"]
[Site "Tashkent"]
[Date "2024.11.28"]
[Round "8.13"]
[White "Nitish Belurkar"]
[Black "Madaminov, Mukhiddin"]
[Result "1-0"]
[ECO "B51"]
[WhiteElo "2434"]
[BlackElo "2501"]
[Annotator "TA"]
[PlyCount "63"]
[EventDate "2024.11.22"]
[EventType "swiss"]
[EventCountry "UZB"]
[SourceTitle "playchess.com"]
[Source "ChessBase"]
[SourceQuality "1"]
[TimeControl "5400+30"]

{[%evp 9,63,18,23,26,24,25,14,0,0,0,0,0,0,0,0,0,0,0,0,0,0,0,0,0,0,0,145,155,153,159,491,518,504,525,804,804,879,900,902,858,1364,968,1335,0,1365,1361,1340,1181,1318,1268,29979,29980,29978,29967,29978,2283]} 1. e4 {[%emt 0:00:03]} c5 {[%emt 0:00:36]} 2. Nf3 {[%emt 0:00:07]} d6 {[%emt 0:00:01]} 3. Bb5+ {[%emt 0:00:06]} Nd7 {[%emt 0:00:07]} 4. O-O {[%emt 0:00:05]} a6 {[%emt 0:00:31]} 5. Bd3 {[%emt 0:00:07]} Ngf6 {[%emt 0:00:17]} 6. c3 {[%emt 0:00:11]} b5 {[%emt 0:00:09]} 7. a4 {[%emt 0:00:21]} Bb7 {[%emt 0:00:06]} 8. axb5 {[%emt 0:00:56] The position is equal.} axb5 {[%emt 0:00:07]} 9. Rxa8 {[%emt 0:00:16]} Qxa8 {[%emt 0:00:08]} 10. Bxb5 {[%emt 0:00:25]} Bxe4 {[%emt 0:00:14]} 11. d4 {[%emt 0:00:24][%cal Od4c5]} Bxb1 {[%emt 0:00:52]} 12. dxc5 {[%emt 0:00:05]} Be4 {[%emt 0:00:07] Threatens to win with ...Bc6.} (12... dxc5 13. Ne5 Bf5 14. Bg5 $18) 13. Re1 $1 {[%emt 0:00:13]} e6 {[%emt 0:10:24]} (13... dxc5 $2 14. Ne5 Qb7 (14... Qd5 $2 15. Nxd7 Nxd7 16. Qa4 $18) 15. Qa4 $18) 14. Rxe4 {[%emt 0:00:12]} Nxe4 {[%emt 0:04:28]} (14... Qxe4 $5 15. c6 $8 Nb6 16. c7+ Ke7 $11) 15. c6 {[%emt 0:02:49]} Nb6 {[%emt 0:02:33] [#] aiming for ...Be7.} 16. Qd4 {[%emt 0:00:08]} Nc5 {[%emt 0:09:52] Strongly threatening ...f6.} (16... Qa5 17. c4 Nc5 18. b4 Qxb4 19. c7+ Ke7 20. Qa1) 17. b4 {[%emt 0:00:19][%cal Bb2b4,Bb4c5][%mdl 32]} Qa1 {[%emt 0:13:50] White leaves nothing to chance now.} (17... Nca4 $11 {remains equal.}) 18. bxc5 $40 {[%emt 0:24:53][%mdl 128] White wants to mate with c7+. White has strong attack.} Qxc1+ {[%emt 0:08:24]} 19. Bf1 {[%emt 0:00:19] White is more active.} Nd5 {[%emt 0:07:01] [#]} (19... dxc5 $16 {is tougher.} 20. Qe5 f6 21. Qb8+ (21. Qxe6+ $2 Kd8 $19) 21... Kf7) 20. c7 $1 $18 {[%emt 0:05:11][%mdl 512]} Nxc7 {[%emt 0:27:23] ...Qa3 would now be deadly.} 21. cxd6 {[%emt 0:00:28]} Nb5 {[%emt 0:01:37]} 22. d7+ {[%emt 0:03:24]} (22. Qa4 Bxd6 23. Qxb5+ (23. Qa8+ $2 Ke7 $19) 23... Ke7 24. Qb7+ Kf6 $19) 22... Kd8 {[%emt 0:00:30]} 23. Qb6+ {[%emt 0:02:46]} Kxd7 {[%emt 0:01:56]} 24. Qxb5+ {[%emt 0:04:01]} Ke7 {[%emt 0:00:11]} 25. Qc5+ {[%emt 0:01:07]} Ke8 {[%emt 0:02:56]} 26. Qb5+ {[%emt 0:10:43]} Ke7 {[%emt 0:00:16]} 27. Qb4+ {[%emt 0:04:21]} Ke8 {[%emt 0:00:35]} 28. Qa4+ {[%emt 0:00:52]} Ke7 {[%emt 0:00:37]} 29. Qa7+ {[%emt 0:00:16]} Kf6 {[%emt 0:03:38]} 30. Qd4+ {[%emt 0:00:15] White mates.} Ke7 {[%emt 0:00:55]} 31. Ne5 {[%emt 0:01:02]} f5 {[%emt 0:01:51]} 32. f4 {[%emt 0:00:09] Weighted Error Value: White=0.36/Black=0.78.  Loses game:     	---       	Black=1      Mistake:       	---       	Black=1      Inaccurate:     	---       	Black=1      OK:         	White=5     	Black=6      Best:        	White=6     	Black=3      Strong:       	White=1     	---        Brilliant:      	White=1     	---} (32. Nc6+ $142 Kf7 33. Qd7+ Kf6 34. Nd8 Kg5 35. Qxe6 (35. Nf7+ Kf6 $18) 35... Qb1 36. Nf7+ Kh5 37. Nxh8) 1-0

[Event "3rd President Cup-A 2024"]
[Site "Tashkent"]
[Date "2024.11.28"]
[Round "8.14"]
[White "Soham Kamotra"]
[Black "Nikitenko, Mihail"]
[Result "1/2-1/2"]
[ECO "D37"]
[WhiteElo "2420"]
[BlackElo "2490"]
[Annotator "TA"]
[PlyCount "109"]
[EventDate "2024.11.22"]
[EventType "swiss"]
[EventCountry "UZB"]
[SourceTitle "playchess.com"]
[Source "ChessBase"]
[SourceQuality "1"]
[TimeControl "5400+30"]

{[%evp 9,109,33,25,19,25,0,0,13,15,0,0,0,0,0,0,13,28,12,26,0,51,0,54,0,0,0,0,0,0,0,25,5,58,64,66,-41,-37,-42,-43,-52,-56,-52,-55,-55,-54,-58,-29,-38,-24,-22,-22,-33,-24,-17,-21,-37,18,0,4,5,0,0,47,54,49,49,49,47,288,33,35,40,66,59,67,60,61,56,69,58,54,53,36,77,162,37,125,124,543,170,348,387,439,378,322,303,265,0,0,0,77,0]} 1. d4 {[%emt 0:00:05]} d5 {[%emt 0:00:06]} 2. c4 {[%emt 0:00:03]} e6 {[%emt 0:00:05]} 3. Nc3 {[%emt 0:00:03]} a6 {[%emt 0:00:05]} 4. cxd5 {[%emt 0:00:28]} exd5 {[%emt 0:00:04]} 5. Nf3 {[%emt 0:00:05]} Nf6 {[%emt 0:00:04]} 6. Bg5 {[%emt 0:00:07]} Be6 {[%emt 0:00:07]} 7. Bxf6 {[%emt 0:00:18]} Qxf6 {[%emt 0:00:04]} 8. Qb3 {[%emt 0:00:07] The position is equal.} Ra7 {[%emt 0:00:05]} 9. h4 {[%emt 0:02:06][%cal Oe2e3]} Bd6 {[%emt 0:02:38]} 10. e3 {[%emt 0:00:30][%cal Be2e3,Be3e4][%mdl 32]} (10. Nxd5 Qf5 11. Ne5 (11. Ne3 $2 Qa5+ 12. Qc3 Bb4 $19) 11... Nd7 $17) 10... h6 {[%emt 0:01:16] Repels Ng5} 11. Bd3 {[%emt 0:00:51]} Nd7 {[%emt 0:01:54]} (11... c6 $2 12. Qb6 $18) 12. Qc2 {[%emt 0:29:43]} Qe7 {[%emt 0:05:11]} 13. O-O-O {[%emt 0:02:35]} c6 {[%emt 0:01:42]} 14. Kb1 {[%emt 0:00:34]} b5 {[%emt 0:05:08]} (14... Nf6 $11) 15. e4 $14 {[%emt 0:04:04]} Nb6 {[%emt 0:02:27]} (15... Rc7 $11) 16. Nxd5 {[%emt 0:04:37]} cxd5 {[%emt 0:04:32]} 17. Qc6+ {[%emt 0:01:22]} Rd7 $1 {[%emt 0:02:55][%cal Od5e4]} (17... Nd7 $6 18. exd5 O-O (18... Bg4 $2 19. Rde1 $18) 19. dxe6 fxe6 20. Rhe1 $16) 18. Qxb6 {[%emt 0:00:12]} dxe4 {[%emt 0:00:35]} 19. Bxe4 {[%emt 0:00:21][%cal Oe4c6] Strongly threatening Bc6!} O-O $1 {[%emt 0:00:03]} 20. d5 {[%emt 0:10:37]} Bc5 {[%emt 0:09:36]} (20... Bg4 $11 21. Rhe1 Qf6) 21. Qc6 $1 {[%emt 0:00:26]} Bg4 {[%emt 0:07:56]} 22. Rhe1 {[%emt 0:10:18]} (22. Rde1 $1 $14) 22... Qd6 $15 {[%emt 0:00:09]} 23. Qxd6 {[%emt 0:00:34]} Rxd6 {[%emt 0:00:04]} 24. Rf1 {[%emt 0:19:27]} Re8 {[%emt 0:03:03][%mdl 1024] Black has compensation.} 25. Bc2 {[%emt 0:00:01]} Kf8 {[%emt 0:02:21]} 26. Rd2 {[%emt 0:00:38]} Bb6 {[%emt 0:03:11]} 27. a3 {[%emt 0:00:28]} Bd8 {[%emt 0:00:59]} 28. Nh2 {[%emt 0:01:08]} Be2 {[%emt 0:02:03]} 29. Re1 {[%emt 0:01:09]} Bc4 {[%emt 0:00:11]} 30. Rxe8+ {[%emt 0:12:33]} Kxe8 {[%emt 0:00:05]} 31. Be4 {[%emt 0:00:00]} Bxh4 {[%emt 0:01:49]} 32. Kc2 {[%emt 0:00:00] [#]} b4 {[%emt 0:00:59]} 33. axb4 {[%emt 0:00:00]} Be7 {[%emt 0:01:21]} 34. Ng4 {[%emt 0:00:00]} Rb6 {[%emt 0:05:06]} 35. Ne5 {[%emt 0:00:00]} Rxb4 {[%emt 0:04:12]} (35... Bf1 $11 {feels stronger.}) 36. d6 $1 $14 {[%emt 0:00:00]} Bb5 {[%emt 0:03:33]} (36... Bb3+ $2 37. Kc3 Bxd6 (37... Rxe4 $2 38. d7+ Kf8 39. d8=Q+ Bxd8 40. Rxd8+ Ke7 41. Nc6+ Kf6 42. Kxb3 $18) 38. Rxd6 $18) 37. f3 {[%emt 0:00:00]} Bd8 {[%emt 0:03:20]} 38. b3 {[%emt 0:00:00] Nc6 would now be deadly.} f6 $2 {[%emt 0:00:47]} (38... Kf8 $14) 39. Nc6 $2 {[%emt 0:00:51]} (39. Bg6+ $18 Kf8 40. Nf7) 39... Bxc6 $1 {[%emt 0:00:32]} 40. Bxc6+ {[%emt 0:00:01][%mdl 4096] Endgame. KRB-KRB} Kf7 {[%emt 0:00:07]} 41. Re2 $1 {[%emt 0:00:23] Be8+ would kill now. White is more active.} f5 $1 {[%emt 0:00:48]} 42. Bd5+ {[%emt 0:00:23]} Kg6 $1 {[%emt 0:01:31]} 43. Re6+ {[%emt 0:01:03]} Kg5 {[%emt 0:01:11]} 44. Re8 {[%emt 0:01:06]} Rd4 {[%emt 0:01:11]} 45. Rxd8 {[%emt 0:00:01]} Rxd5 {[%emt 0:00:04] KR-KR} 46. Kc3 {[%emt 0:00:04]} Kf6 {[%emt 0:01:59]} (46... h5 $16 {was necessary.}) 47. Kc4 $18 {[%emt 0:00:07]} Rd2 {[%emt 0:00:03][%cal Of6e6]} (47... Ke6 48. Re8+ Kd7 49. Kxd5 $18) 48. Kc5 $1 {[%emt 0:00:05]} Rxg2 $2 {[%emt 0:01:57][%mdl 8192]} (48... g5 $16 {is more resistant.}) 49. Re8 $1 {[%emt 0:00:12] aiming for d7.} (49. Rf8+ Ke6 $14) 49... Rd2 $2 {[%emt 0:00:08]} (49... Rc2+ {might work better.} 50. Kb6 Rd2) 50. Kc6 {[%emt 0:00:08] Threatens to win with d7.} Rc2+ {[%emt 0:00:14]} 51. Kb7 {[%emt 0:00:10][%cal Od6d7] Hoping for d7!} Rd2 {[%emt 0:00:04]} 52. Kc7 {[%emt 0:00:05] And now d7 would win.} (52. Kxa6 Rxd6+ 53. Ka5 Rd3 54. Rf8+ Kg5 $19) 52... Rc2+ {[%emt 0:00:03] [#]} 53. Kb7 $2 {[%emt 0:00:07]} (53. Kd8 $1 $18 {and the rest is easy.}) 53... Rd2 $1 $16 {[%emt 0:00:04]} 54. Kc7 {[%emt 0:00:03] d7 is the strong threat.} (54. Kxa6 Rxd6+ 55. Ka7 Rd3 $19) 54... Rc2+ {[%emt 0:00:07] [#]} 55. Kb7 {[%emt 0:04:55] Weighted Error Value: White=0.21 (precise) /Black=0.32.  Loses game:     	---       	Black=2      Missed win:     	White=2     	---        Mistake:       	White=2     	Black=7      Inaccurate:     	White=1     	Black=2      OK:         	White=21    	Black=10     Best:        	White=5     	Black=8      Strong:       	White=5     	Black=6} (55. Kd8 $1 $16 Rc3 56. d7 Rxb3 57. Kc7) 1/2-1/2